fUSD/lending_fUSD_20250618
["ID","MTS","AMOUNT","RATE_DAILY","PERIOD"]
[366363581,1750215044075,-156.26164084,0.00016329,2]
[366363582,1750215044085,-204.5382182,0.00016338,2]
[366363583,1750215044094,-1463.718,0.00016351,2]
[366363584,1750215044103,-516.355,0.00016351,2]
[366363585,1750215044113,-156.26164084,0.00016351,2]
[366363586,1750215044123,-200.0,0.00016357,2]
[366363587,1750215044132,-157.17364023,0.00016366,2]
[366363588,1750215044141,-156.26164084,0.00016373,2]
[366363589,1750215044151,-161.93,0.0001639,2]
[366363590,1750215044160,-161.93,0.0001639,2]
[366363591,1750215044169,-156.26164084,0.00016394,2]
[366363592,1750215044179,-19799.31519471,0.00016398,2]
[366363593,1750215044189,-338014.79991578,0.00016398,2]
[366363595,1750215046166,-705.32530926,0.00016278,2]
[366363596,1750215046178,-352.80485019,0.00016278,2]
[366363597,1750215046188,-348.05674571,0.00016398,2]
[366363598,1750215046199,-91955.71001825,0.00016398,2]
[366363599,1750215046220,-588.748,0.00016398,2]
[366363600,1750215046232,-26475.2316267,0.00016398,2]
[366363601,1750215046381,-1273.0,0.00016398,2]
[366363602,1750215046434,-4268.55155797,0.00016398,2]
[366363603,1750215046445,-1129.13249258,0.00016398,2]
[366363604,1750215046540,-18397.42940397,0.00016398,2]
[366363608,1750215252840,203.0,0.00013043,2]
[366363610,1750215690038,1574.0,0.00024658,120]
[366363612,1750215976922,203.0,0.00012849,2]
[366363613,1750216020341,228.32,0.00024658,120]
[366363622,1750216111554,1529.4,0.00024658,120]
[366363657,1750216232117,-210.68,0.00013699,2]
[366363659,1750216232128,-203.0,0.00014663,4]
[366363661,1750216232137,-262.87,0.00015246,2]
[366363663,1750216232146,-662.49,0.00015249,2]
[366363665,1750216232156,-972.49454211,0.00015272,2]
[366363667,1750216232167,-27.50545789,0.00015272,2]
[366363669,1750216232177,-183.39,0.00015317,2]
[366363671,1750216232186,-250.0,0.0001532,2]
[366363673,1750216232195,-1200.0,0.0001542,2]
[366363675,1750216232205,-300.0,0.00015421,2]
[366363677,1750216232214,-300.0,0.00015421,2]
[366363679,1750216232224,-4325.56118653,0.00015422,2]
[366363681,1750216232235,-574.42573208,0.00015422,2]
[366363684,1750216232251,-567.02785561,0.00015422,2]
[366363686,1750216232262,-673.93286093,0.00015422,2]
[366363688,1750216232274,-2911.73821749,0.00015422,2]
[366363691,1750216232286,-8744.15092581,0.00015422,2]
[366363762,1750216237390,-652.99322155,0.00015422,2]
[366363763,1750216237401,-200.0,0.00015454,7]
[366363764,1750216237411,-151.0,0.00015614,2]
[366363765,1750216237421,-1957.85600001,0.00015614,2]
[366363766,1750216237431,-207.4,0.00015614,2]
[366363767,1750216237442,-502.0,0.00015644,2]
[366363768,1750216237451,-167.64,0.00015857,2]
[366363769,1750216237461,-1675.18896704,0.000159,2]
[366363770,1750216237471,-620.0,0.00015945,2]
[366363771,1750216237480,-620.0,0.00015996,2]
[366363772,1750216237490,-24641.72398702,0.00016,10]
[366363774,1750216237655,-1675.188967,0.00016038,2]
[366363775,1750216237671,-889.312,0.00016081,2]
[366363776,1750216237681,-1675.188967,0.00016176,2]
[366363777,1750216237691,-1877.0,0.000162,2]
[366363778,1750216237700,-1000.0,0.0001626,2]
[366363780,1750216237710,-1003.07,0.000163,2]
[366363781,1750216237719,-846.50412756,0.000163,2]
[366363783,1750216237729,-156.26164085,0.000163,2]
[366363784,1750216237739,-500.0,0.00016307,2]
[366363785,1750216237748,-620.0,0.00016313,2]
[366363787,1750216237758,-1675.188967,0.00016314,2]
[366363789,1750216237767,-155.62672108,0.00016316,2]
[366363792,1750216237777,-304.85325798,0.0001633,2]
[366363794,1750216237786,-163.63057456,0.00016338,2]
[366363796,1750216237795,-1170.975,0.00016338,2]
[366363798,1750216237804,-413.084,0.00016338,2]
[366363800,1750216237813,-606.61806222,0.00016338,2]
[366363801,1750216237822,-493.94,0.00016355,2]
[366363802,1750216237831,-301.38,0.00016355,2]
[366363803,1750216237841,-503.53,0.00016355,2]
[366363804,1750216237850,-846.50412756,0.00016359,2]
[366363805,1750216237859,-13738.22071453,0.00016397,2]
[366363806,1750216237868,-820.396245,0.00016398,2]
[366363807,1750216237877,-499.85,0.00016398,2]
[366363808,1750216237886,-302.83,0.00016398,2]
[366363809,1750216237895,-200.0,0.000164,2]
[366363810,1750216237904,-203878.5589798,0.000164,2]
[366363811,1750216237913,-60348.52999902,0.000164,2]
[366363812,1750216237923,-846.50412756,0.00016418,2]
[366363813,1750216237932,-199.0,0.00016427,2]
[366363814,1750216237941,-292.38444839,0.00016428,2]
[366363815,1750216237950,-198.59687895,0.00016428,2]
[366363816,1750216237959,-158.66,0.00016428,2]
[366363817,1750216237969,-158.66,0.00016428,2]
[366363818,1750216237979,-158.66,0.00016428,2]
[366363819,1750216237989,-833.92080167,0.00016429,2]
[366363820,1750216237999,-152.232174,0.00016429,2]
[366363821,1750216238008,-500.0,0.00016429,2]
[366363822,1750216238018,-264.6081846,0.00016429,2]
[366363823,1750216238028,-4270.7043067,0.0001643,2]
[366363824,1750216238037,-128025.6996336,0.0001643,2]
[366363825,1750216238047,-11321.4345838,0.0001643,2]
[366363826,1750216238056,-171.82,0.00016437,2]
[366363827,1750216238065,-9899.65759735,0.00016437,2]
[366363828,1750216238075,-268440.20276636,0.00016437,2]
[366363829,1750216238084,-1080.0,0.00016438,2]
[366363830,1750216238095,-162.368396,0.00016438,2]
[366363831,1750216238105,-161.858795,0.00016438,2]
[366363832,1750216238115,-155.44894,0.00016438,2]
[366363833,1750216238124,-159.99973,0.00016438,2]
[366363834,1750216238134,-156.184555,0.00016438,2]
[366363835,1750216238144,-490.0,0.00016438,2]
[366363836,1750216238154,-207.1010055,0.00016438,2]
[366363837,1750216238164,-490.0,0.00016438,2]
[366363838,1750216238175,-490.0,0.00016438,2]
[366363839,1750216238184,-151.42246,0.00016438,2]
[366363840,1750216238194,-151.0,0.00016438,2]
[366363841,1750216238204,-2646.897704,0.00016438,2]
[366363842,1750216238214,-153.953065,0.00016438,2]
[366363843,1750216238224,-151.0,0.00016438,2]
[366363844,1750216238234,-151.0,0.00016438,2]
[366363845,1750216238244,-238.758746,0.00016438,2]
[366363846,1750216238254,-151.0,0.00016438,2]
[366363847,1750216238263,-183.194187,0.00016438,2]
[366363848,1750216238273,-490.0,0.00016438,2]
[366363849,1750216238283,-490.0,0.00016438,2]
[366363850,1750216238293,-490.0,0.00016438,2]
[366363851,1750216238303,-490.0,0.00016438,2]
[366363852,1750216238312,-490.0,0.00016438,2]
[366363853,1750216238322,-160.6579939,0.00016438,2]
[366363854,1750216238332,-490.0,0.00016438,2]
[366363855,1750216238341,-151.0,0.00016438,2]
[366363856,1750216238351,-151.605827,0.00016438,2]
[366363857,1750216238364,-490.0,0.00016438,2]
[366363858,1750216238374,-490.0,0.00016438,2]
[366363859,1750216238383,-151.0,0.00016438,2]
[366363860,1750216238393,-151.0,0.00016438,2]
[366363861,1750216238405,-151.0,0.00016438,2]
[366363862,1750216238414,-160.468182,0.00016438,2]
[366363863,1750216238425,-490.0,0.00016438,2]
[366363864,1750216238436,-490.0,0.00016438,2]
[366363865,1750216238445,-168.225736,0.00016438,2]
[366363866,1750216238455,-491.14106965,0.00016438,2]
[366363867,1750216238464,-927.72,0.00016438,2]
[366363868,1750216238475,-490.0,0.00016438,2]
[366363869,1750216238485,-490.0,0.00016438,2]
[366363870,1750216238495,-490.0,0.00016438,2]
[366363871,1750216238505,-495.31079342,0.00016438,2]
[366363872,1750216238514,-490.0,0.00016438,2]
[366363873,1750216238524,-490.63955188,0.00016438,2]
[366363874,1750216238534,-490.0,0.00016438,2]
[366363875,1750216238543,-495.0737645,0.00016438,2]
[366363876,1750216238553,-492.17258839,0.00016438,2]
[366363877,1750216238562,-490.0,0.00016438,2]
[366363878,1750216238572,-705.0,0.00016438,2]
[366363879,1750216238582,-490.0,0.00016438,2]
[366363880,1750216238591,-490.0,0.00016438,2]
[366363881,1750216238600,-490.0,0.00016438,2]
[366363882,1750216238610,-490.0,0.00016438,2]
[366363883,1750216238619,-490.0,0.00016438,2]
[366363884,1750216238630,-490.0,0.00016438,2]
[366363885,1750216238640,-490.0,0.00016438,2]
[366363886,1750216238650,-490.0,0.00016438,2]
[366363887,1750216238660,-491.39844724,0.00016438,2]
[366363888,1750216238670,-491.76155691,0.00016438,2]
[366363889,1750216238680,-490.0,0.00016438,2]
[366363890,1750216238689,-490.0,0.00016438,2]
[366363891,1750216238700,-491.42543483,0.00016438,2]
[366363892,1750216238709,-490.0,0.00016438,2]
[366363893,1750216238718,-490.0,0.00016438,2]
[366363894,1750216238728,-689.19,0.00016438,2]
[366363895,1750216238738,-819.39,0.00016438,2]
[366363896,1750216238747,-612.0,0.00016438,2]
[366363897,1750216238758,-490.0,0.00016438,2]
[366363898,1750216238768,-490.0,0.00016438,2]
[366363899,1750216238778,-422.6288634,0.00016438,2]
[366363900,1750216238788,-490.0,0.00016438,2]
[366363901,1750216238798,-490.0,0.00016438,2]
[366363902,1750216238808,-150.33687993,0.00016438,2]
[366363903,1750216238818,-1453.24,0.00016438,2]
[366363904,1750216238827,-150.0,0.00016438,2]
[366363905,1750216238837,-340.59198904,0.00016438,2]
[366363906,1750216238847,-490.0,0.00016438,2]
[366363907,1750216238857,-152.11962139,0.00016438,2]
[366363908,1750216238866,-491.27792705,0.00016438,2]
[366363909,1750216238876,-150.77671026,0.00016438,2]
[366363910,1750216238886,-816.88,0.00016438,2]
[366363911,1750216238895,-152.24955216,0.00016438,2]
[366363912,1750216238905,-153.356555,0.00016438,2]
[366363913,1750216238915,-151.0,0.00016438,2]
[366363914,1750216238925,-280.304439,0.00016438,2]
[366363915,1750216238934,-490.0,0.00016438,2]
[366363916,1750216238944,-438.03631452,0.00016438,2]
[366363917,1750216238954,-490.0,0.00016438,2]
[366363918,1750216238963,-490.0,0.00016438,2]
[366363919,1750216238974,-953.36,0.00016438,2]
[366363920,1750216238984,-572.28,0.00016438,2]
[366363921,1750216238994,-490.0,0.00016438,2]
[366363922,1750216239004,-496.09917087,0.00016438,2]
[366363923,1750216239013,-490.0,0.00016438,2]
[366363924,1750216239022,-490.0,0.00016438,2]
[366363925,1750216239033,-490.0,0.00016438,2]
[366363926,1750216239042,-244.83391174,0.00016438,2]
[366363927,1750216239052,-490.0,0.00016438,2]
[366363928,1750216239062,-1452.82,0.00016438,2]
[366363929,1750216239072,-151.0,0.00016438,2]
[366363930,1750216239081,-1120.55,0.00016438,2]
[366363931,1750216239092,-1546.34,0.00016438,2]
[366363932,1750216239101,-491.27855126,0.00016438,2]
[366363933,1750216239111,-490.0,0.00016438,2]
[366363934,1750216239121,-151.0,0.00016438,2]
[366363935,1750216239131,-151.0,0.00016438,2]
[366363936,1750216239140,-151.0,0.00016438,2]
[366363937,1750216239150,-151.0,0.00016438,2]
[366363938,1750216239160,-490.0,0.00016438,2]
[366363939,1750216239171,-490.0,0.00016438,2]
[366363940,1750216239181,-490.0,0.00016438,2]
[366363941,1750216239191,-490.0,0.00016438,2]
[366363942,1750216239201,-490.0,0.00016438,2]
[366363943,1750216239211,-558.54841602,0.00016438,2]
[366363944,1750216239220,-490.0,0.00016438,2]
[366363945,1750216239231,-490.0,0.00016438,2]
[366363946,1750216239240,-490.0,0.00016438,2]
[366363947,1750216239250,-490.0,0.00016438,2]
[366363948,1750216239260,-490.0,0.00016438,2]
[366363949,1750216239269,-606.59,0.00016438,2]
[366363950,1750216239279,-490.0,0.00016438,2]
[366363951,1750216239288,-490.0,0.00016438,2]
[366363952,1750216239298,-490.0,0.00016438,2]
[366363953,1750216239307,-490.0,0.00016438,2]
[366363954,1750216239317,-662.51,0.00016438,2]
[366363955,1750216239326,-151.0,0.00016438,2]
[366363956,1750216239336,-151.0,0.00016438,2]
[366363957,1750216239345,-490.0,0.00016438,2]
[366363958,1750216239358,-273.704677,0.00016438,2]
[366363959,1750216239369,-816.24,0.00016438,2]
[366363960,1750216239376,-494.03506448,0.00016438,2]
[366363962,1750216239385,-496.52294167,0.00016438,2]
[366363963,1750216239395,-517.78582032,0.00016438,2]
[366363964,1750216239407,-490.0,0.00016438,2]
[366363965,1750216239417,-490.0,0.00016438,2]
[366363966,1750216239428,-490.0,0.00016438,2]
[366363967,1750216239439,-490.0,0.00016438,2]
[366363968,1750216239449,-151.0,0.00016438,2]
[366363969,1750216239458,-152.74641,0.00016438,2]
[366363970,1750216239468,-490.0,0.00016438,2]
[366363971,1750216239480,-490.0,0.00016438,2]
[366363972,1750216239490,-490.0,0.00016438,2]
[366363973,1750216239499,-490.0,0.00016438,2]
[366363974,1750216239510,-490.0,0.00016438,2]
[366363975,1750216239521,-490.0,0.00016438,2]
[366363976,1750216239532,-490.0,0.00016438,2]
[366363977,1750216239544,-490.0,0.00016438,2]
[366363978,1750216239555,-1093.36,0.00016438,2]
[366363979,1750216239565,-490.0,0.00016438,2]
[366363980,1750216239576,-490.0,0.00016438,2]
[366363981,1750216239588,-490.0,0.00016438,2]
[366363982,1750216239598,-243.874976,0.00016438,2]
[366363983,1750216239610,-243.874976,0.00016438,2]
[366363984,1750216239621,-243.874976,0.00016438,2]
[366363985,1750216239631,-243.874976,0.00016438,2]
[366363986,1750216239642,-243.874976,0.00016438,2]
[366363987,1750216239652,-243.874976,0.00016438,2]
[366363988,1750216239662,-243.874976,0.00016438,2]
[366363989,1750216239673,-490.0,0.00016438,2]
[366363990,1750216239683,-243.874976,0.00016438,2]
[366363991,1750216239694,-243.874976,0.00016438,2]
[366363992,1750216239704,-243.874976,0.00016438,2]
[366363993,1750216239714,-243.874976,0.00016438,2]
[366363994,1750216239724,-717.72,0.00016438,2]
[366363995,1750216239741,-151.0,0.00016438,2]
[366363996,1750216239751,-151.0,0.00016438,2]
[366363997,1750216239762,-151.0,0.00016438,2]
[366363998,1750216239772,-151.0,0.00016438,2]
[366363999,1750216239782,-151.0,0.00016438,2]
[366364000,1750216239792,-157.958198,0.00016438,2]
[366364001,1750216239802,-194.12296921,0.00016438,2]
[366364002,1750216239813,-490.0,0.00016438,2]
[366364003,1750216239823,-490.0,0.00016438,2]
[366364004,1750216239833,-490.0,0.00016438,2]
[366364005,1750216239843,-490.0,0.00016438,2]
[366364006,1750216239853,-152.141221,0.00016438,2]
[366364007,1750216239866,-151.0,0.00016438,2]
[366364008,1750216239877,-152.818703,0.00016438,2]
[366364009,1750216239887,-490.0,0.00016438,2]
[366364010,1750216239897,-490.0,0.00016438,2]
[366364011,1750216239908,-490.0,0.00016438,2]
[366364012,1750216239917,-865.2,0.00016438,2]
[366364013,1750216239927,-664.54,0.00016438,2]
[366364014,1750216239937,-490.0,0.00016438,2]
[366364015,1750216239947,-490.0,0.00016438,2]
[366364016,1750216239958,-490.0,0.00016438,2]
[366364017,1750216239968,-537.74,0.00016438,2]
[366364018,1750216239983,-1092.63,0.00016438,2]
[366364019,1750216239993,-894.64,0.00016438,2]
[366364020,1750216240003,-490.0,0.00016438,2]
[366364021,1750216240013,-501.17531761,0.00016438,2]
[366364022,1750216240023,-578.95,0.00016438,2]
[366364023,1750216240033,-490.0,0.00016438,2]
[366364024,1750216240043,-490.0,0.00016438,2]
[366364025,1750216240053,-490.0,0.00016438,2]
[366364027,1750216240063,-553.54,0.00016438,2]
[366364028,1750216240073,-354.45197649,0.00016438,2]
[366364029,1750216240083,-151.0,0.00016438,2]
[366364030,1750216240093,-497.82182013,0.00016438,2]
[366364031,1750216240104,-151.0,0.00016438,2]
[366364032,1750216240113,-490.0,0.00016438,2]
[366364033,1750216240123,-151.0,0.00016438,2]
[366364034,1750216240133,-151.0,0.00016438,2]
[366364035,1750216240143,-151.0,0.00016438,2]
[366364036,1750216240153,-151.0,0.00016438,2]
[366364037,1750216240163,-195.316092,0.00016438,2]
[366364038,1750216240173,-490.0,0.00016438,2]
[366364039,1750216240184,-1456.29,0.00016438,2]
[366364040,1750216240194,-490.0,0.00016438,2]
[366364041,1750216240205,-498.31781101,0.00016438,2]
[366364042,1750216240215,-490.0,0.00016438,2]
[366364043,1750216240227,-490.0,0.00016438,2]
[366364044,1750216240237,-490.0,0.00016438,2]
[366364045,1750216240248,-490.0,0.00016438,2]
[366364046,1750216240257,-1208.02,0.00016438,2]
[366364047,1750216240267,-769.05,0.00016438,2]
[366364048,1750216240278,-926.37,0.00016438,2]
[366364049,1750216240288,-490.0,0.00016438,2]
[366364050,1750216240298,-490.0,0.00016438,2]
[366364051,1750216240309,-561.31,0.00016438,2]
[366364052,1750216240319,-490.00928347,0.00016438,2]
[366364053,1750216240329,-443.78377527,0.00016438,2]
[366364054,1750216240339,-490.0,0.00016438,2]
[366364055,1750216240350,-151.0,0.00016438,2]
[366364056,1750216240362,-490.0,0.00016438,2]
[366364057,1750216240373,-924.35,0.00016438,2]
[366364058,1750216240383,-490.0,0.00016438,2]
[366364059,1750216240394,-490.0,0.00016438,2]
[366364060,1750216240406,-638.39,0.00016438,2]
[366364061,1750216240417,-490.0,0.00016438,2]
[366364062,1750216240429,-490.0,0.00016438,2]
[366364063,1750216240442,-537.19,0.00016438,2]
[366364064,1750216240453,-490.0,0.00016438,2]
[366364065,1750216240466,-973.44,0.00016438,2]
[366364066,1750216240481,-490.0,0.00016438,2]
[366364067,1750216240496,-490.0,0.00016438,2]
[366364068,1750216240505,-715.34,0.00016438,2]
[366364069,1750216240516,-490.0,0.00016438,2]
[366364070,1750216240527,-490.0,0.00016438,2]
[366364071,1750216240538,-490.0,0.00016438,2]
[366364072,1750216240548,-642.73,0.00016438,2]
[366364073,1750216240558,-490.0,0.00016438,2]
[366364074,1750216240567,-490.0,0.00016438,2]
[366364075,1750216240577,-490.0,0.00016438,2]
[366364076,1750216240587,-1229.5,0.00016438,2]
[366364077,1750216240597,-499.72103063,0.00016438,2]
[366364078,1750216240607,-945.47,0.00016438,2]
[366364079,1750216240617,-490.0,0.00016438,2]
[366364080,1750216240627,-490.0,0.00016438,2]
[366364081,1750216240637,-816.484327,0.00016438,2]
[366364082,1750216240647,-498.45,0.00016438,2]
[366364083,1750216240656,-151.0,0.00016438,2]
[366364084,1750216240666,-490.0,0.00016438,2]
[366364085,1750216240676,-151.0,0.00016438,2]
[366364086,1750216240686,-260.07228467,0.00016438,2]
[366364087,1750216241111,-151.0,0.00016438,2]
[366364088,1750216241132,-151.0,0.00016438,2]
[366364089,1750216241142,-151.0,0.00016438,2]
[366364090,1750216241152,-490.0,0.00016438,2]
[366364091,1750216241161,-154.966258,0.00016438,2]
[366364092,1750216241171,-151.0,0.00016438,2]
[366364093,1750216241181,-1297.48,0.00016438,2]
[366364094,1750216241190,-268.77632016,0.00016438,2]
[366364095,1750216241200,-151.0,0.00016438,2]
[366364096,1750216241209,-215.615152,0.00016438,2]
[366364097,1750216241219,-151.0,0.00016438,2]
[366364098,1750216241229,-151.0,0.00016438,2]
[366364099,1750216241239,-151.0,0.00016438,2]
[366364100,1750216241249,-151.0,0.00016438,2]
[366364101,1750216241259,-151.0,0.00016438,2]
[366364102,1750216241269,-496.01,0.00016438,2]
[366364103,1750216241278,-490.0,0.00016438,2]
[366364104,1750216241288,-151.0,0.00016438,2]
[366364105,1750216241297,-652.74,0.00016438,2]
[366364106,1750216241307,-490.0,0.00016438,2]
[366364107,1750216241317,-490.0,0.00016438,2]
[366364108,1750216241327,-151.0,0.00016438,2]
[366364109,1750216241336,-151.0,0.00016438,2]
[366364110,1750216241346,-151.0,0.00016438,2]
[366364111,1750216241355,-151.0,0.00016438,2]
[366364112,1750216241368,-151.0,0.00016438,2]
[366364113,1750216241377,-151.0,0.00016438,2]
[366364114,1750216241387,-490.0,0.00016438,2]
[366364115,1750216241396,-151.0,0.00016438,2]
[366364116,1750216241407,-871.38,0.00016438,2]
[366364117,1750216241418,-490.0,0.00016438,2]
[366364118,1750216241427,-267.220752,0.00016438,2]
[366364119,1750216241437,-490.0,0.00016438,2]
[366364120,1750216241447,-559.89,0.00016438,2]
[366364121,1750216241457,-490.0,0.00016438,2]
[366364122,1750216241467,-500.38105824,0.00016438,2]
[366364123,1750216241478,-490.0,0.00016438,2]
[366364124,1750216241488,-1698.47,0.00016438,2]
[366364125,1750216241499,-490.0,0.00016438,2]
[366364126,1750216241510,-989.96,0.00016438,2]
[366364127,1750216241520,-523.79,0.00016438,2]
[366364128,1750216241531,-557.67,0.00016438,2]
[366364129,1750216241541,-357.47,0.00016438,2]
[366364130,1750216241551,-622.94,0.00016438,2]
[366364131,1750216241562,-584.97,0.00016438,2]
[366364132,1750216241573,-919.64,0.00016438,2]
[366364133,1750216241582,-490.0,0.00016438,2]
[366364134,1750216241592,-490.0,0.00016438,2]
[366364135,1750216241602,-825.43,0.00016438,2]
[366364136,1750216241612,-490.0,0.00016438,2]
[366364137,1750216241622,-490.0,0.00016438,2]
[366364138,1750216241632,-490.0,0.00016438,2]
[366364139,1750216241641,-636.09,0.00016438,2]
[366364140,1750216241651,-490.0,0.00016438,2]
[366364141,1750216241661,-655.88,0.00016438,2]
[366364142,1750216241671,-1285.01,0.00016438,2]
[366364143,1750216241681,-772.7,0.00016438,2]
[366364144,1750216241691,-769.82,0.00016438,2]
[366364145,1750216241700,-490.0,0.00016438,2]
[366364146,1750216241710,-1158.81,0.00016438,2]
[366364147,1750216241720,-845.84,0.00016438,2]
[366364148,1750216241730,-490.0,0.00016438,2]
[366364149,1750216241740,-798.39,0.00016438,2]
[366364150,1750216241749,-490.0,0.00016438,2]
[366364151,1750216241759,-654.64,0.00016438,2]
[366364152,1750216241769,-490.0,0.00016438,2]
[366364153,1750216241779,-917.19,0.00016438,2]
[366364154,1750216241788,-1854.96,0.00016438,2]
[366364155,1750216241797,-490.0,0.00016438,2]
[366364156,1750216241807,-490.0,0.00016438,2]
[366364157,1750216241815,-490.0,0.00016438,2]
[366364158,1750216241823,-1358.49,0.00016438,2]
[366364159,1750216241832,-724.57,0.00016438,2]
[366364160,1750216241841,-490.0,0.00016438,2]
[366364161,1750216241853,-490.0,0.00016438,2]
[366364162,1750216241862,-379.14722464,0.00016438,2]
[366364163,1750216241871,-564.18,0.00016438,2]
[366364164,1750216241880,-490.0,0.00016438,2]
[366364165,1750216241890,-536.62,0.00016438,2]
[366364166,1750216241899,-1367.23,0.00016438,2]
[366364167,1750216241908,-780.23,0.00016438,2]
[366364168,1750216241917,-730.36,0.00016438,2]
[366364169,1750216241927,-1023.41,0.00016438,2]
[366364170,1750216241936,-490.0,0.00016438,2]
[366364171,1750216241945,-490.0,0.00016438,2]
[366364172,1750216241955,-1345.46,0.00016438,2]
[366364173,1750216241965,-490.0,0.00016438,2]
[366364174,1750216241974,-490.0,0.00016438,2]
[366364175,1750216241983,-490.0,0.00016438,2]
[366364176,1750216241993,-1579.09,0.00016438,2]
[366364177,1750216242003,-517.99,0.00016438,2]
[366364178,1750216242013,-490.0,0.00016438,2]
[366364179,1750216242023,-796.74,0.00016438,2]
[366364180,1750216242032,-490.0,0.00016438,2]
[366364181,1750216242042,-490.0,0.00016438,2]
[366364182,1750216242052,-1823.89,0.00016438,2]
[366364183,1750216242062,-490.0,0.00016438,2]
[366364184,1750216242071,-300.0,0.00016438,2]
[366364185,1750216242081,-490.0,0.00016438,2]
[366364186,1750216242091,-1403.26,0.00016438,2]
[366364187,1750216242100,-694.16,0.00016438,2]
[366364188,1750216242110,-490.0,0.00016438,2]
[366364189,1750216242119,-206.77960578,0.00016438,2]
[366364190,1750216242129,-490.0,0.00016438,2]
[366364191,1750216242140,-1140.11,0.00016438,2]
[366364192,1750216242150,-490.0,0.00016438,2]
[366364193,1750216242160,-1063.88,0.00016438,2]
[366364194,1750216242169,-490.0,0.00016438,2]
[366364195,1750216242178,-901.28,0.00016438,2]
[366364196,1750216242188,-490.0,0.00016438,2]
[366364198,1750216242197,-560.13,0.00016438,2]
[366364199,1750216242207,-702.65,0.00016438,2]
[366364200,1750216242216,-1185.99,0.00016438,2]
[366364202,1750216242226,-592.87,0.00016438,2]
[366364203,1750216242236,-743.35,0.00016438,2]
[366364204,1750216242246,-490.0,0.00016438,2]
[366364205,1750216242255,-923.1,0.00016438,2]
[366364206,1750216242265,-490.0,0.00016438,2]
[366364207,1750216242274,-1220.84,0.00016438,2]
[366364208,1750216242284,-529.54,0.00016438,2]
[366364209,1750216242294,-1406.34,0.00016438,2]
[366364210,1750216242303,-753.25,0.00016438,2]
[366364212,1750216242313,-490.0,0.00016438,2]
[366364214,1750216242323,-490.0,0.00016438,2]
[366364216,1750216242333,-490.0,0.00016438,2]
[366364217,1750216242343,-1243.62,0.00016438,2]
[366364218,1750216242353,-490.0,0.00016438,2]
[366364219,1750216242367,-490.0,0.00016438,2]
[366364220,1750216242376,-573.77,0.00016438,2]
[366364221,1750216242385,-490.0,0.00016438,2]
[366364222,1750216242396,-490.0,0.00016438,2]
[366364223,1750216242406,-490.0,0.00016438,2]
[366364224,1750216242416,-152.345492,0.00016438,2]
[366364225,1750216242426,-151.0,0.00016438,2]
[366364226,1750216242438,-490.0,0.00016438,2]
[366364227,1750216242448,-1502.24,0.00016438,2]
[366364228,1750216242458,-975.12,0.00016438,2]
[366364229,1750216242468,-609.03,0.00016438,2]
[366364230,1750216242478,-490.0,0.00016438,2]
[366364231,1750216242487,-782.66,0.00016438,2]
[366364232,1750216242497,-743.73,0.00016438,2]
[366364233,1750216242507,-1260.7,0.00016438,2]
[366364234,1750216242517,-490.0,0.00016438,2]